[Event "Titled Tuesday Blitz November 22 Late 2022"]
[White "Terry, Renato"]
[Black "Kollars, Dmitrij"]
[WhiteFideId "3803457"]
[BlackFideId "12909572"]
[WhiteElo "2577"]
[BlackElo "2584"]
[Result "1/2-1/2"]
[Round "09"]
[TimeControl "180+1"]
[Date "2022.11.22"]
[WhiteClock "0:01:04"]
[BlackClock "0:00:46"]

1. d4 {[%clk 0:03:00]}  Nf6 {[%clk 0:02:59]} 2. Nf3 {[%clk 0:03:01]}  d5 {[%clk 0:02:58]} 3. c4 {[%clk 0:03:01]}  e6 {[%clk 0:02:59]} 4. e3 {[%clk 0:03:02]}  b6 {[%clk 0:02:58]} 5. Bd3 {[%clk 0:03:00]}  Bb7 {[%clk 0:02:58]} 6. b3 {[%clk 0:03:00]}  Bd6 {[%clk 0:02:58]} 7. O-O {[%clk 0:03:00]}  O-O {[%clk 0:02:58]} 8. Bb2 {[%clk 0:03:00]}  Nbd7 {[%clk 0:02:57]} 9. Nbd2 {[%clk 0:03:00]}  Ne4 {[%clk 0:02:56]} 10. Qe2 {[%clk 0:03:00]}  Ndf6 {[%clk 0:02:52]} 11. Rfd1 {[%clk 0:02:58]}  Qe7 {[%clk 0:02:51]} 12. Ne5 {[%clk 0:02:54]}  c5 {[%clk 0:02:47]} 13. dxc5 {[%clk 0:02:42]}  Nxc5 {[%clk 0:02:43]} 14. Bc2 {[%clk 0:02:42]}  Rfd8 {[%clk 0:02:39]} 15. cxd5 {[%clk 0:02:26]}  exd5 {[%clk 0:02:31]} 16. Ndf3 {[%clk 0:02:15]}  Nfe4 {[%clk 0:02:20]} 17. Qe1 {[%clk 0:02:07]}  Rac8 {[%clk 0:02:16]} 18. Rac1 {[%clk 0:02:07]}  a5 {[%clk 0:02:12]} 19. Nd3 {[%clk 0:02:04]}  Ne6 {[%clk 0:02:00]} 20. Bb1 {[%clk 0:01:47]}  h5 {[%clk 0:01:48]} 21. Rxc8 {[%clk 0:01:47]}  Rxc8 {[%clk 0:01:48]} 22. Rc1 {[%clk 0:01:47]}  Rc7 {[%clk 0:01:26]} 23. Be5 {[%clk 0:01:29]}  Bxe5 {[%clk 0:01:02]} 24. Ndxe5 {[%clk 0:01:23]}  Rc5 {[%clk 0:00:50]} 25. Nd3 {[%clk 0:01:18]}  Rc7 {[%clk 0:00:47]} 26. Nde5 {[%clk 0:01:14]}  Rc5 {[%clk 0:00:46]} 27. Nd3 {[%clk 0:01:08]}  Rc7 {[%clk 0:00:46]} 28. Nde5 {[%clk 0:01:04]} 1/2-1/2


[Site "https://www.chess.com"]

[Event "Titled Tuesday Blitz November 22 Late 2022"]
[White "Tomaszewski, Kacper"]
[Black "Baltaci, Ismail Tarik"]
[WhiteFideId "1127373"]
[BlackFideId "6365213"]
[WhiteElo "2211"]
[BlackElo "2349"]
[Result "1/2-1/2"]
[Round "09"]
[TimeControl "180+1"]
[Date "2022.11.23"]
[WhiteClock "0:00:18"]
[BlackClock "0:00:19"]

1. Nf3 {[%clk 0:03:00]}  Nf6 {[%clk 0:02:59]} 2. e3 {[%clk 0:02:59]}  g6 {[%clk 0:02:59]} 3. b3 {[%clk 0:02:57]}  Bg7 {[%clk 0:03:00]} 4. Bb2 {[%clk 0:02:57]}  O-O {[%clk 0:03:00]} 5. d4 {[%clk 0:02:58]}  d6 {[%clk 0:03:01]} 6. Be2 {[%clk 0:02:56]}  e5 {[%clk 0:03:02]} 7. dxe5 {[%clk 0:02:55]}  Nfd7 {[%clk 0:02:59]} 8. O-O {[%clk 0:02:44]}  Nc6 {[%clk 0:02:58]} 9. c4 {[%clk 0:02:41]}  Ndxe5 {[%clk 0:02:57]} 10. Nc3 {[%clk 0:02:40]}  Nxf3+ {[%clk 0:02:55]} 11. Bxf3 {[%clk 0:02:40]}  Ne5 {[%clk 0:02:56]} 12. Be2 {[%clk 0:02:39]}  Bd7 {[%clk 0:02:53]} 13. Qd2 {[%clk 0:02:39]}  Bc6 {[%clk 0:02:53]} 14. Nd5 {[%clk 0:02:37]}  Bxd5 {[%clk 0:02:41]} 15. Qxd5 {[%clk 0:02:28]}  Nf3+ {[%clk 0:02:40]} 16. Qxf3 {[%clk 0:02:25]}  Bxb2 {[%clk 0:02:40]} 17. Rab1 {[%clk 0:02:26]}  Be5 {[%clk 0:02:37]} 18. Qxb7 {[%clk 0:02:24]}  a5 {[%clk 0:02:36]} 19. Bf3 {[%clk 0:02:18]}  Rb8 {[%clk 0:02:35]} 20. Qa6 {[%clk 0:02:17]}  Bc3 {[%clk 0:02:24]} 21. Rfc1 {[%clk 0:02:15]}  Bb4 {[%clk 0:02:21]} 22. Qc6 {[%clk 0:02:01]}  Qe7 {[%clk 0:02:15]} 23. g3 {[%clk 0:01:56]}  h5 {[%clk 0:02:14]} 24. h4 {[%clk 0:01:56]}  Rfe8 {[%clk 0:02:09]} 25. Kg2 {[%clk 0:01:55]}  Rb6 {[%clk 0:02:04]} 26. Qd5 {[%clk 0:01:52]}  Ba3 {[%clk 0:01:47]} 27. Rc2 {[%clk 0:01:52]}  Qf6 {[%clk 0:01:42]} 28. Rd1 {[%clk 0:01:48]}  Re5 {[%clk 0:01:41]} 29. Qa8+ {[%clk 0:01:47]}  Kg7 {[%clk 0:01:41]} 30. Rd5 {[%clk 0:01:42]}  Rxd5 {[%clk 0:01:27]} 31. Bxd5 {[%clk 0:01:41]}  Bb4 {[%clk 0:01:25]} 32. Qe8 {[%clk 0:01:32]}  Qf5 {[%clk 0:01:15]} 33. Re2 {[%clk 0:01:26]}  Bc5 {[%clk 0:01:12]} 34. Qe4 {[%clk 0:01:22]}  Qf6 {[%clk 0:01:11]} 35. Qf4 {[%clk 0:01:21]}  Qxf4 {[%clk 0:01:05]} 36. exf4 {[%clk 0:01:19]}  c6 {[%clk 0:01:05]} 37. Bf3 {[%clk 0:01:16]}  Kf8 {[%clk 0:01:06]} 38. f5 {[%clk 0:01:16]}  gxf5 {[%clk 0:01:01]} 39. Bxh5 {[%clk 0:01:12]}  a4 {[%clk 0:01:02]} 40. bxa4 {[%clk 0:01:10]}  Rb4 {[%clk 0:01:02]} 41. Bf3 {[%clk 0:01:00]}  Rxa4 {[%clk 0:01:02]} 42. Bxc6 {[%clk 0:00:59]}  Rxc4 {[%clk 0:01:03]} 43. h5 {[%clk 0:00:51]}  f4 {[%clk 0:00:59]} 44. h6 {[%clk 0:00:49]}  Kg8 {[%clk 0:00:44]} 45. Be4 {[%clk 0:00:37]}  fxg3 {[%clk 0:00:35]} 46. Bf5 {[%clk 0:00:32]}  Kf8 {[%clk 0:00:17]} 47. fxg3 {[%clk 0:00:32]}  Bd4 {[%clk 0:00:15]} 48. g4 {[%clk 0:00:21]}  Be5 {[%clk 0:00:15]} 49. g5 {[%clk 0:00:17]}  Rf4 {[%clk 0:00:14]} 50. Rf2 {[%clk 0:00:08]}  Rxf2+ {[%clk 0:00:11]} 51. Kxf2 {[%clk 0:00:09]}  Bf4 {[%clk 0:00:12]} 52. h7 {[%clk 0:00:08]}  Kg7 {[%clk 0:00:12]} 53. g6 {[%clk 0:00:08]}  fxg6 {[%clk 0:00:10]} 54. Bxg6 {[%clk 0:00:09]}  Be5 {[%clk 0:00:10]} 55. Bd3 {[%clk 0:00:09]}  Bc3 {[%clk 0:00:10]} 56. Kf3 {[%clk 0:00:10]}  Kf7 {[%clk 0:00:10]} 57. Ke4 {[%clk 0:00:10]}  Bd2 {[%clk 0:00:08]} 58. Kd5 {[%clk 0:00:10]}  Bf4 {[%clk 0:00:08]} 59. a4 {[%clk 0:00:10]}  Kg7 {[%clk 0:00:07]} 60. a5 {[%clk 0:00:10]}  Bg3 {[%clk 0:00:05]} 61. a6 {[%clk 0:00:10]}  Bf2 {[%clk 0:00:05]} 62. Ke6 {[%clk 0:00:09]}  Kh8 {[%clk 0:00:06]} 63. Kf7 {[%clk 0:00:09]}  Bc5 {[%clk 0:00:06]} 64. Be4 {[%clk 0:00:09]}  Ba7 {[%clk 0:00:06]} 65. Bd5 {[%clk 0:00:09]}  Bg1 {[%clk 0:00:07]} 66. Kg6 {[%clk 0:00:09]}  Bc5 {[%clk 0:00:08]} 67. Kf6 {[%clk 0:00:10]}  Bg1 {[%clk 0:00:09]} 68. Bg8 {[%clk 0:00:09]}  Bc5 {[%clk 0:00:10]} 69. Ke6 {[%clk 0:00:10]}  Bg1 {[%clk 0:00:11]} 70. Kxd6 {[%clk 0:00:10]}  Bf2 {[%clk 0:00:11]} 71. Kc6 {[%clk 0:00:11]}  Bg1 {[%clk 0:00:12]} 72. Kd5 {[%clk 0:00:11]}  Bf2 {[%clk 0:00:13]} 73. Ke6 {[%clk 0:00:10]}  Bg1 {[%clk 0:00:13]} 74. Kf6 {[%clk 0:00:11]}  Bf2 {[%clk 0:00:14]} 75. Kg6 {[%clk 0:00:11]}  Bg1 {[%clk 0:00:14]} 76. Bd5 {[%clk 0:00:11]}  Bf2 {[%clk 0:00:15]} 77. Be4 {[%clk 0:00:12]}  Bg1 {[%clk 0:00:16]} 78. Kf7 {[%clk 0:00:11]}  Bf2 {[%clk 0:00:16]} 79. Ke6 {[%clk 0:00:12]}  Bg1 {[%clk 0:00:17]} 80. Kd5 {[%clk 0:00:13]}  Bf2 {[%clk 0:00:17]} 81. Kc6 {[%clk 0:00:14]}  Bg1 {[%clk 0:00:18]} 82. Kb7 {[%clk 0:00:15]}  Bf2 {[%clk 0:00:19]} 83. Kc6 {[%clk 0:00:16]}  Bg1 {[%clk 0:00:19]} 84. Kd5 {[%clk 0:00:17]}  Bf2 {[%clk 0:00:19]} 85. Kc6 {[%clk 0:00:18]} 1/2-1/2


[Site "https://www.chess.com"]

[Event "Titled Tuesday Blitz November 22 Late 2022"]
[White "Vlassov, Nikolai"]
[Black "Barria Zuniga, Daniel"]
[WhiteFideId "4103360"]
[BlackFideId "3400816"]
[WhiteElo "2324"]
[BlackElo "2414"]
[Result "0-1"]
[Round "09"]
[TimeControl "180+1"]
[Date "2022.11.23"]
[WhiteClock "0:00:06"]
[BlackClock "0:00:06"]

1. e4 {[%clk 0:03:00]}  c5 {[%clk 0:02:58]} 2. c3 {[%clk 0:03:00]}  d5 {[%clk 0:02:47]} 3. exd5 {[%clk 0:03:00]}  Qxd5 {[%clk 0:02:47]} 4. d4 {[%clk 0:03:01]}  Nc6 {[%clk 0:02:46]} 5. Nf3 {[%clk 0:03:02]}  Bf5 {[%clk 0:02:43]} 6. Be3 {[%clk 0:02:55]}  cxd4 {[%clk 0:02:38]} 7. Nxd4 {[%clk 0:02:50]}  Nf6 {[%clk 0:02:39]} 8. Nxf5 {[%clk 0:02:35]}  Qxf5 {[%clk 0:02:38]} 9. Bd3 {[%clk 0:02:26]}  Qd5 {[%clk 0:02:34]} 10. O-O {[%clk 0:02:23]}  O-O-O {[%clk 0:02:34]} 11. Be2 {[%clk 0:02:22]}  e6 {[%clk 0:02:32]} 12. Qa4 {[%clk 0:02:18]}  Qe4 {[%clk 0:02:18]} 13. b4 {[%clk 0:01:59]}  Nd5 {[%clk 0:01:34]} 14. Bf3 {[%clk 0:01:58]}  Qc4 {[%clk 0:01:26]} 15. Bxa7 {[%clk 0:01:51]}  Bd6 {[%clk 0:01:13]} 16. g3 {[%clk 0:01:19]}  Nxa7 {[%clk 0:00:24]} 17. Qxa7 {[%clk 0:01:18]}  Bb8 {[%clk 0:00:20]} 18. Qa3 {[%clk 0:01:10]}  h5 {[%clk 0:00:20]} 19. Nd2 {[%clk 0:01:08]}  Qd3 {[%clk 0:00:19]} 20. Rfd1 {[%clk 0:00:59]}  h4 {[%clk 0:00:17]} 21. Be4 {[%clk 0:00:56]}  Qe2 {[%clk 0:00:17]} 22. Bf3 {[%clk 0:00:37]}  Qd3 {[%clk 0:00:16]} 23. Bxd5 {[%clk 0:00:19]}  Rxd5 {[%clk 0:00:12]} 24. Nf1 {[%clk 0:00:17]}  Qxd1 {[%clk 0:00:10]} 25. Rxd1 {[%clk 0:00:17]}  Rxd1 {[%clk 0:00:11]} 26. Qb3 {[%clk 0:00:17]}  Rd7 {[%clk 0:00:06]} 27. gxh4 {[%clk 0:00:15]}  Rxh4 {[%clk 0:00:05]} 28. Ng3 {[%clk 0:00:15]}  Rf4 {[%clk 0:00:03]} 29. Kg2 {[%clk 0:00:14]}  Rd2 {[%clk 0:00:03]} 30. Nh1 {[%clk 0:00:12]}  Rg4+ {[%clk 0:00:03]} 31. Kf3 {[%clk 0:00:12]}  f5 {[%clk 0:00:04]} 32. h3 {[%clk 0:00:11]}  Rd3+ {[%clk 0:00:04]} 33. Ke2 {[%clk 0:00:11]}  Rxh3 {[%clk 0:00:05]} 34. Ng3 {[%clk 0:00:11]}  Bxg3 {[%clk 0:00:05]} 35. fxg3 {[%clk 0:00:11]}  Rgxg3 {[%clk 0:00:06]} 36. Qxe6+ {[%clk 0:00:10]}  Kc7 {[%clk 0:00:06]} 37. Qxf5 {[%clk 0:00:09]}  Rxc3 {[%clk 0:00:06]} 38. Qf7+ {[%clk 0:00:08]}  Kb6 {[%clk 0:00:07]} 39. Qe6+ {[%clk 0:00:08]}  Kb5 {[%clk 0:00:07]} 40. a4+ {[%clk 0:00:08]}  Kxb4 {[%clk 0:00:07]} 41. Qe7+ {[%clk 0:00:07]}  Kxa4 {[%clk 0:00:07]} 42. Qd7+ {[%clk 0:00:07]}  Ka3 {[%clk 0:00:07]} 43. Qe7+ {[%clk 0:00:06]}  Kb2 {[%clk 0:00:07]} 44. Qc7 {[%clk 0:00:06]}  Rxc7 {[%clk 0:00:06]} 0-1


[Site "https://www.chess.com"]

[Event "Titled Tuesday Blitz November 22 Late 2022"]
[White "Yeritsyan, Hayk"]
[Black "vjecspec"]
[WhiteFideId "13307320"]
[WhiteElo "2404"]
[BlackElo "2576"]
[Result "0-1"]
[Round "09"]
[TimeControl "180+1"]
[Date "2022.11.23"]
[WhiteClock "0:00:30"]
[BlackClock "0:00:20"]

1. d4 {[%clk 0:03:00]}  g6 {[%clk 0:02:59]} 2. Nf3 {[%clk 0:03:00]}  Bg7 {[%clk 0:02:59]} 3. Bf4 {[%clk 0:03:01]}  d6 {[%clk 0:02:59]} 4. h3 {[%clk 0:03:02]}  Nd7 {[%clk 0:02:59]} 5. e3 {[%clk 0:03:02]}  e5 {[%clk 0:02:59]} 6. Bh2 {[%clk 0:03:03]}  exd4 {[%clk 0:02:57]} 7. exd4 {[%clk 0:03:04]}  Ngf6 {[%clk 0:02:56]} 8. c3 {[%clk 0:03:04]}  O-O {[%clk 0:02:57]} 9. Be2 {[%clk 0:03:05]}  b6 {[%clk 0:02:55]} 10. O-O {[%clk 0:03:06]}  Bb7 {[%clk 0:02:56]} 11. Nbd2 {[%clk 0:03:06]}  Re8 {[%clk 0:02:56]} 12. Re1 {[%clk 0:03:05]}  Bh6 {[%clk 0:02:50]} 13. Nc4 {[%clk 0:03:03]}  Nh5 {[%clk 0:02:33]} 14. Nfd2 {[%clk 0:03:00]}  Nf4 {[%clk 0:02:22]} 15. Bxf4 {[%clk 0:02:59]}  Bxf4 {[%clk 0:02:21]} 16. Bf3 {[%clk 0:03:00]}  Rxe1+ {[%clk 0:02:16]} 17. Qxe1 {[%clk 0:02:59]}  Bxf3 {[%clk 0:02:15]} 18. Nxf3 {[%clk 0:02:59]}  Qf8 {[%clk 0:02:11]} 19. Qe4 {[%clk 0:02:55]}  Bh6 {[%clk 0:02:01]} 20. Re1 {[%clk 0:02:50]}  Nf6 {[%clk 0:01:53]} 21. Qe7 {[%clk 0:02:33]}  Qxe7 {[%clk 0:01:44]} 22. Rxe7 {[%clk 0:02:32]}  Nd5 {[%clk 0:01:44]} 23. Rd7 {[%clk 0:02:23]}  Rc8 {[%clk 0:01:43]} 24. Na3 {[%clk 0:02:00]}  a6 {[%clk 0:01:39]} 25. c4 {[%clk 0:01:45]}  Kf8 {[%clk 0:01:33]} 26. c5 {[%clk 0:01:34]}  Ke8 {[%clk 0:01:29]} 27. c6 {[%clk 0:01:31]}  Nf6 {[%clk 0:01:26]} 28. Nc4 {[%clk 0:01:22]}  Nxd7 {[%clk 0:01:26]} 29. cxd7+ {[%clk 0:01:23]}  Kxd7 {[%clk 0:01:27]} 30. Kf1 {[%clk 0:01:23]}  Re8 {[%clk 0:01:26]} 31. g4 {[%clk 0:01:22]}  Bc1 {[%clk 0:01:24]} 32. b3 {[%clk 0:01:22]}  f6 {[%clk 0:01:18]} 33. d5 {[%clk 0:01:21]}  Re4 {[%clk 0:01:00]} 34. a4 {[%clk 0:01:20]}  b5 {[%clk 0:00:59]} 35. axb5 {[%clk 0:01:15]}  axb5 {[%clk 0:01:00]} 36. Na5 {[%clk 0:01:16]}  Re8 {[%clk 0:00:43]} 37. Nc6 {[%clk 0:01:04]}  Bb2 {[%clk 0:00:39]} 38. h4 {[%clk 0:01:00]}  Re4 {[%clk 0:00:36]} 39. g5 {[%clk 0:00:55]}  f5 {[%clk 0:00:32]} 40. Kg2 {[%clk 0:00:52]}  Re2 {[%clk 0:00:23]} 41. Kg3 {[%clk 0:00:48]}  Ba3 {[%clk 0:00:20]} 42. h5 {[%clk 0:00:46]}  Bc5 {[%clk 0:00:19]} 43. hxg6 {[%clk 0:00:44]}  hxg6 {[%clk 0:00:20]} 44. Nfd4 {[%clk 0:00:40]}  Bxd4 {[%clk 0:00:20]} 45. Nxd4 {[%clk 0:00:40]}  Rb2 {[%clk 0:00:20]} 46. f3 {[%clk 0:00:35]}  b4 {[%clk 0:00:20]} 47. Kf4 {[%clk 0:00:33]}  Rd2 {[%clk 0:00:17]} 48. Ke3 {[%clk 0:00:33]}  Rd1 {[%clk 0:00:17]} 49. Nc6 {[%clk 0:00:30]}  Rxd5 {[%clk 0:00:17]} 50. Nxb4 {[%clk 0:00:29]}  Rb5 {[%clk 0:00:17]} 51. Nd3 {[%clk 0:00:27]}  Rxb3 {[%clk 0:00:17]} 52. Kd4 {[%clk 0:00:28]}  Rxd3+ {[%clk 0:00:18]} 53. Kxd3 {[%clk 0:00:28]}  c5 {[%clk 0:00:18]} 54. Kc4 {[%clk 0:00:28]}  Kc6 {[%clk 0:00:19]} 55. f4 {[%clk 0:00:29]}  d5+ {[%clk 0:00:19]} 56. Kd3 {[%clk 0:00:29]}  Kb5 {[%clk 0:00:20]} 57. Kc3 {[%clk 0:00:30]}  d4+ {[%clk 0:00:20]} 0-1


[Site "https://www.chess.com"]

[Event "Titled Tuesday Blitz November 22 Late 2022"]
[White "chess50years"]
[Black "Thomas, Anysia"]
[BlackFideId "670472"]
[WhiteElo "2062"]
[BlackElo "2069"]
[Result "1-0"]
[Round "09"]
[TimeControl "180+1"]
[Date "2022.11.23"]
[WhiteClock "0:00:06"]
[BlackClock "0:00:05"]

1. c4 {[%clk 0:02:44]}  g6 {[%clk 0:02:46]} 2. Nc3 {[%clk 0:02:44]}  Bg7 {[%clk 0:02:36]} 3. g3 {[%clk 0:02:43]}  Nf6 {[%clk 0:02:36]} 4. Bg2 {[%clk 0:02:43]}  O-O {[%clk 0:02:36]} 5. e3 {[%clk 0:02:43]}  c5 {[%clk 0:02:36]} 6. Nge2 {[%clk 0:02:42]}  Nc6 {[%clk 0:02:36]} 7. O-O {[%clk 0:02:42]}  e6 {[%clk 0:02:36]} 8. d4 {[%clk 0:02:41]}  cxd4 {[%clk 0:02:36]} 9. Nxd4 {[%clk 0:02:41]}  d5 {[%clk 0:02:34]} 10. cxd5 {[%clk 0:02:40]}  Nxd5 {[%clk 0:02:30]} 11. Nxd5 {[%clk 0:02:39]}  exd5 {[%clk 0:02:29]} 12. Nxc6 {[%clk 0:02:38]}  bxc6 {[%clk 0:02:30]} 13. Qa4 {[%clk 0:02:37]}  Qb6 {[%clk 0:02:23]} 14. Bd2 {[%clk 0:02:28]}  Bf5 {[%clk 0:02:19]} 15. Rac1 {[%clk 0:02:12]}  Qxb2 {[%clk 0:02:11]} 16. Bb4 {[%clk 0:01:55]}  Rfb8 {[%clk 0:01:54]} 17. Bc5 {[%clk 0:01:46]}  Qb5 {[%clk 0:01:48]} 18. Qa3 {[%clk 0:01:30]}  Rc8 {[%clk 0:01:45]} 19. h3 {[%clk 0:01:26]}  a5 {[%clk 0:01:44]} 20. Rfd1 {[%clk 0:01:21]}  Bd3 {[%clk 0:01:40]} 21. Bd4 {[%clk 0:01:11]}  Bc4 {[%clk 0:01:37]} 22. Bxg7 {[%clk 0:01:07]}  Kxg7 {[%clk 0:01:38]} 23. Qc3+ {[%clk 0:01:04]}  f6 {[%clk 0:01:37]} 24. e4 {[%clk 0:01:02]}  Bxa2 {[%clk 0:01:23]} 25. exd5 {[%clk 0:00:58]}  Bxd5 {[%clk 0:01:18]} 26. Qe3 {[%clk 0:00:41]}  Re8 {[%clk 0:01:15]} 27. Qf4 {[%clk 0:00:38]}  Ra7 {[%clk 0:01:07]} 28. Bxd5 {[%clk 0:00:36]}  cxd5 {[%clk 0:01:05]} 29. Rc7+ {[%clk 0:00:35]}  Rxc7 {[%clk 0:01:05]} 30. Qxc7+ {[%clk 0:00:35]}  Kg8 {[%clk 0:01:04]} 31. Qd6 {[%clk 0:00:31]}  a4 {[%clk 0:00:51]} 32. Rxd5 {[%clk 0:00:30]}  Qb1+ {[%clk 0:00:48]} 33. Kh2 {[%clk 0:00:30]}  Qb2 {[%clk 0:00:39]} 34. Rd2 {[%clk 0:00:22]}  Qe5 {[%clk 0:00:39]} 35. Qa3 {[%clk 0:00:11]}  Qe4 {[%clk 0:00:32]} 36. Rd7 {[%clk 0:00:10]}  Qe2 {[%clk 0:00:24]} 37. Qc5 {[%clk 0:00:09]}  Qe6 {[%clk 0:00:22]} 38. Ra7 {[%clk 0:00:07]}  h5 {[%clk 0:00:05]} 39. Qc7 {[%clk 0:00:06]} 1-0


[Site "https://www.chess.com"]

[Event "Titled Tuesday Blitz November 22 Late 2022"]
[White "monkins"]
[Black "Marcolino, Daniel Mattos"]
[BlackFideId "2106841"]
[WhiteElo "2297"]
[BlackElo "2101"]
[Result "0-1"]
[Round "09"]
[TimeControl "180+1"]
[Date "2022.11.23"]
[WhiteClock "0:00:01"]
[BlackClock "0:00:31"]

1. Nf3 {[%clk 0:03:00]}  d5 {[%clk 0:02:59]} 2. c4 {[%clk 0:03:00]}  e6 {[%clk 0:02:58]} 3. g3 {[%clk 0:02:59]}  Nf6 {[%clk 0:02:58]} 4. Bg2 {[%clk 0:03:00]}  b6 {[%clk 0:02:52]} 5. O-O {[%clk 0:02:56]}  Bb7 {[%clk 0:02:52]} 6. d3 {[%clk 0:02:56]}  dxc4 {[%clk 0:02:51]} 7. dxc4 {[%clk 0:02:56]}  Qxd1 {[%clk 0:02:50]} 8. Rxd1 {[%clk 0:02:57]}  Be7 {[%clk 0:02:46]} 9. Bf4 {[%clk 0:02:45]}  c5 {[%clk 0:02:43]} 10. Nc3 {[%clk 0:02:40]}  O-O {[%clk 0:02:37]} 11. Nb5 {[%clk 0:02:26]}  Nbd7 {[%clk 0:02:26]} 12. Bd6 {[%clk 0:02:03]}  Bxd6 {[%clk 0:02:15]} 13. Nxd6 {[%clk 0:02:04]}  Bc6 {[%clk 0:02:16]} 14. Rd2 {[%clk 0:01:44]}  Rfd8 {[%clk 0:02:04]} 15. Rad1 {[%clk 0:01:43]}  Kf8 {[%clk 0:01:58]} 16. b3 {[%clk 0:00:57]}  Ke7 {[%clk 0:01:55]} 17. h3 {[%clk 0:00:48]}  h6 {[%clk 0:01:53]} 18. Ne1 {[%clk 0:00:33]}  Bxg2 {[%clk 0:01:52]} 19. Kxg2 {[%clk 0:00:28]}  Ne5 {[%clk 0:01:44]} 20. Nf3 {[%clk 0:00:19]}  Nc6 {[%clk 0:01:36]} 21. Nb5 {[%clk 0:00:15]}  Rxd2 {[%clk 0:01:33]} 22. Rxd2 {[%clk 0:00:16]}  a6 {[%clk 0:01:33]} 23. Nc3 {[%clk 0:00:13]}  Rd8 {[%clk 0:01:30]} 24. Na4 {[%clk 0:00:09]}  Rxd2 {[%clk 0:01:27]} 25. Nxd2 {[%clk 0:00:10]}  Nd7 {[%clk 0:01:27]} 26. e3 {[%clk 0:00:09]}  Nb4 {[%clk 0:01:26]} 27. Nc3 {[%clk 0:00:06]}  Kd6 {[%clk 0:01:12]} 28. f4 {[%clk 0:00:06]}  e5 {[%clk 0:01:11]} 29. Kf3 {[%clk 0:00:06]}  exf4 {[%clk 0:01:08]} 30. exf4 {[%clk 0:00:05]}  Nf6 {[%clk 0:01:04]} 31. Nde4+ {[%clk 0:00:04]}  Nxe4 {[%clk 0:01:04]} 32. Kxe4 {[%clk 0:00:05]}  Kc6 {[%clk 0:00:49]} 33. f5 {[%clk 0:00:05]}  b5 {[%clk 0:00:46]} 34. cxb5+ {[%clk 0:00:04]}  axb5 {[%clk 0:00:46]} 35. f6 {[%clk 0:00:03]}  gxf6 {[%clk 0:00:46]} 36. Kf5 {[%clk 0:00:03]}  Kd6 {[%clk 0:00:29]} 37. Kxf6 {[%clk 0:00:02]}  Nd5+ {[%clk 0:00:29]} 38. Nxd5 {[%clk 0:00:02]}  Kxd5 {[%clk 0:00:30]} 39. Kxf7 {[%clk 0:00:01]}  c4 {[%clk 0:00:31]} 0-1


[Site "https://www.chess.com"]

[Event "Titled Tuesday Blitz November 22 Late 2022"]
[White "Andreikin, Dmitry"]
[Black "Zhigalko, Sergei"]
[WhiteFideId "4158814"]
[BlackFideId "13502956"]
[WhiteElo "2736"]
[BlackElo "2662"]
[Result "1-0"]
[Round "10"]
[TimeControl "180+1"]
[Date "2022.11.22"]
[WhiteClock "0:01:34"]
[BlackClock "0:00:08"]

1. Nf3 {[%clk 0:03:00]}  Nf6 {[%clk 0:02:56]} 2. g3 {[%clk 0:02:59]}  e6 {[%clk 0:02:50]} 3. Bg2 {[%clk 0:02:59]}  d5 {[%clk 0:02:50]} 4. O-O {[%clk 0:02:59]}  b5 {[%clk 0:02:50]} 5. d3 {[%clk 0:02:57]}  Bb7 {[%clk 0:02:50]} 6. c4 {[%clk 0:02:56]}  b4 {[%clk 0:02:50]} 7. cxd5 {[%clk 0:02:49]}  exd5 {[%clk 0:02:51]} 8. a3 {[%clk 0:02:43]}  Nbd7 {[%clk 0:02:43]} 9. Bf4 {[%clk 0:02:38]}  a5 {[%clk 0:02:37]} 10. axb4 {[%clk 0:02:29]}  Bxb4 {[%clk 0:02:38]} 11. Qc1 {[%clk 0:02:23]}  c5 {[%clk 0:02:28]} 12. Bd6 {[%clk 0:02:15]}  Qb6 {[%clk 0:01:56]} 13. Qe3+ {[%clk 0:02:08]}  Kd8 {[%clk 0:01:57]} 14. Qe7+ {[%clk 0:01:59]}  Kc8 {[%clk 0:01:57]} 15. Bh3 {[%clk 0:01:59]}  h5 {[%clk 0:00:54]} 16. Ne5 {[%clk 0:01:51]}  Bc6 {[%clk 0:00:45]} 17. Qxf7 {[%clk 0:01:47]}  Ra7 {[%clk 0:00:29]} 18. Qxg7 {[%clk 0:01:40]}  Qd8 {[%clk 0:00:08]} 19. Nxc6 {[%clk 0:01:39]}  Rg8 {[%clk 0:00:08]} 20. Nxa7+ {[%clk 0:01:34]} 1-0


[Site "https://www.chess.com"]

[Event "Titled Tuesday Blitz November 22 Late 2022"]
[White "Annaberdiyev, Babageldi"]
[Black "Wirig, Anthony"]
[WhiteFideId "14000385"]
[BlackFideId "615013"]
[WhiteElo "2332"]
[BlackElo "2487"]
[Result "0-1"]
[Round "10"]
[TimeControl "180+1"]
[Date "2022.11.22"]
[WhiteClock "0:00:15"]
[BlackClock "0:00:07"]

1. e4 {[%clk 0:03:00]}  c5 {[%clk 0:02:58]} 2. Nf3 {[%clk 0:03:00]}  e6 {[%clk 0:02:58]} 3. d3 {[%clk 0:03:00]}  Nc6 {[%clk 0:02:57]} 4. Nbd2 {[%clk 0:03:01]}  d5 {[%clk 0:02:57]} 5. g3 {[%clk 0:03:02]}  Nge7 {[%clk 0:02:57]} 6. Bg2 {[%clk 0:03:00]}  g6 {[%clk 0:02:57]} 7. h4 {[%clk 0:02:59]}  h6 {[%clk 0:02:57]} 8. O-O {[%clk 0:02:58]}  Bg7 {[%clk 0:02:57]} 9. Re1 {[%clk 0:02:56]}  b6 {[%clk 0:02:56]} 10. c3 {[%clk 0:02:48]}  a5 {[%clk 0:02:47]} 11. e5 {[%clk 0:02:38]}  Ba6 {[%clk 0:02:43]} 12. Nf1 {[%clk 0:02:33]}  Qc7 {[%clk 0:02:36]} 13. Bf4 {[%clk 0:02:31]}  g5 {[%clk 0:02:24]} 14. hxg5 {[%clk 0:02:27]}  Ng6 {[%clk 0:02:10]} 15. gxh6 {[%clk 0:02:20]}  Bxh6 {[%clk 0:02:00]} 16. Bxh6 {[%clk 0:02:21]}  Rxh6 {[%clk 0:02:01]} 17. d4 {[%clk 0:02:21]}  Bxf1 {[%clk 0:01:56]} 18. Rxf1 {[%clk 0:02:10]}  c4 {[%clk 0:01:52]} 19. b3 {[%clk 0:02:08]}  Nce7 {[%clk 0:01:42]} 20. bxc4 {[%clk 0:02:03]}  Qxc4 {[%clk 0:01:40]} 21. Rb1 {[%clk 0:02:01]}  Qxa2 {[%clk 0:01:25]} 22. Rxb6 {[%clk 0:02:00]}  Kf8 {[%clk 0:01:07]} 23. Qa1 {[%clk 0:01:45]}  Qc4 {[%clk 0:00:57]} 24. Rfb1 {[%clk 0:01:41]}  Kg7 {[%clk 0:00:55]} 25. Bf1 {[%clk 0:01:39]}  Qc8 {[%clk 0:00:52]} 26. Rb7 {[%clk 0:01:37]}  a4 {[%clk 0:00:46]} 27. Qa3 {[%clk 0:01:34]}  Nf5 {[%clk 0:00:40]} 28. Ng5 {[%clk 0:01:34]}  Nh8 {[%clk 0:00:32]} 29. Bg2 {[%clk 0:01:27]}  Rg6 {[%clk 0:00:30]} 30. f4 {[%clk 0:01:23]}  Nxg3 {[%clk 0:00:29]} 31. Rxf7+ {[%clk 0:00:57]}  Nxf7 {[%clk 0:00:23]} 32. Qe7 {[%clk 0:00:57]}  Qe8 {[%clk 0:00:14]} 33. Nxe6+ {[%clk 0:00:27]}  Rxe6 {[%clk 0:00:14]} 34. Qh4 {[%clk 0:00:28]}  Rg6 {[%clk 0:00:09]} 35. f5 {[%clk 0:00:21]}  Nxf5 {[%clk 0:00:09]} 36. Qf2 {[%clk 0:00:22]}  Qe6 {[%clk 0:00:08]} 37. Rf1 {[%clk 0:00:19]}  N7h6 {[%clk 0:00:08]} 38. c4 {[%clk 0:00:17]}  a3 {[%clk 0:00:07]} 39. cxd5 {[%clk 0:00:15]}  Qxd5 {[%clk 0:00:07]} 0-1


[Site "https://www.chess.com"]